bitfinex-derivatives/quotes_ETHF0:USTF0_20251003
["timestamp","ask_amount","ask_price","bid_price","bid_amount"]
[1759513888669,0.23,4478.1,4476.9,0.23]
[1759513888969,0.23,4478.1,4476.2,3.2078]
[1759513888970,3.2078,4477.1,4476.2,3.2078]
[1759513889373,2.94645944,4477.0,4476.2,3.2078]
[1759513889664,0.40181,4476.6,4476.2,4.51511618]
[1759513889865,2.94894263,4477.0,4476.2,4.91694618]
[1759513890063,2.94645944,4476.5,4476.2,3.43971618]
[1759513890261,0.40182,4476.4,4476.3,1.3054]
[1759513890457,0.40182,4476.4,4476.2,3.20971618]
[1759513890659,3.29305409,4476.4,4476.2,0.00191618]
[1759513891166,8.29305409,4476.4,4476.2,0.00191618]
[1759513891370,0.40194,4475.2,4474.5,3.78750066]
[1759513891566,3.2078,4475.5,4474.5,3.78750066]
[1759513891764,2.8530667,4475.1,4474.6,0.23]
[1759513891958,2.8530667,4475.1,4474.7,1.0303]
[1759513892264,3.2078,4475.5,4474.9,0.02421255]
[1759513892465,2.87410206,4475.0,4474.9,1.05451255]
[1759513892670,2.87410206,4475.3,4475.0,0.4087]
[1759513892860,3.2078,4476.0,4475.1,1.0303]
[1759513893057,2.87410206,4475.9,4475.1,1.2603]
[1759513893259,3.2078,4476.0,4475.5,0.02421255]
[1759513893463,0.40187,4475.9,4475.6,1.0303]
[1759513893659,2.84464813,4475.9,4475.7,0.04110499]
[1759513894766,2.84464813,4475.9,4475.8,1.08516647]
[1759513895269,3.2078,4476.0,4475.9,1.0303]
[1759513895759,3.2078,4476.0,4475.9,0.07175891]
[1759513895966,6.16284928,4476.0,4475.9,0.07175891]
[1759513896171,6.16284928,4476.0,4475.9,1.10205891]
[1759513896472,2.95504928,4476.0,4475.9,1.10205891]
[1759513896767,3.2078,4476.5,4476.1,1.0303]
[1759513896968,3.2078,4476.5,4476.1,0.23]
[1759513897165,2.89387187,4476.4,4476.3,0.09174029]
[1759513897359,2.89387187,4476.4,4475.5,0.4087]
[1759513897564,3.2078,4476.0,4475.6,1.0303]
[1759513897768,3.2078,4476.0,4475.5,0.4087]
[1759513898068,3.2078,4476.0,4475.6,1.0303]
[1759513898270,3.2078,4476.5,4475.6,1.0303]
[1759513898466,3.2078,4476.5,4476.0,0.56791513]
[1759513898674,2.86860134,4476.4,4476.0,0.15921513]
[1759513899263,0.40186,4476.1,4475.0,3.6165]
[1759513899571,3.2078,4475.7,4475.1,0.23]
[1759513899770,0.4019,4475.6,4475.1,1.2603]
[1759513899970,2.95043821,4475.6,4475.0,0.4087]
[1759513900172,2.95043821,4475.6,4474.7,0.00193088]
[1759513900173,0.40196,4474.9,4474.7,0.00193088]
[1759513900376,0.40196,4474.9,4473.3,3.2078]
[1759513900377,0.40199,4474.6,4473.6,1.0303]
[1759513900665,3.2078,4474.1,4472.9,1.05265711]
[1759513900971,3.2078,4473.4,4472.9,0.02235711]
[1759513901169,3.4378,4473.4,4473.0,1.0303]
[1759513901371,2.92601966,4473.3,4472.9,0.02235711]
[1759513901675,0.40211,4473.2,4471.7,1.0303]
[1759513901870,3.2078,4472.6,4472.0,1.439]
[1759513902170,2.88257072,4472.5,4471.7,1.0303]
[1759513902375,2.88257072,4472.5,4472.4,1.0303]
[1759513902564,3.2078,4473.1,4472.5,0.4087]
[1759513902872,2.88257072,4473.0,4472.5,0.4087]
[1759513903073,2.88257072,4473.0,4472.6,1.0303]
[1759513903375,3.2078,4473.1,4472.5,1.439]
[1759513903569,3.2078,4473.1,4472.6,1.0303]
[1759513903570,2.89258761,4473.0,4472.6,1.0303]
[1759513903874,0.40213,4473.0,4472.0,1.439]
[1759513904067,3.19170772,4472.3,4472.1,1.0303]
[1759513904375,3.19170772,4472.3,4472.0,0.4087]
[1759513904669,3.19170772,4472.3,4472.1,1.0303]
[1759513905069,3.19170772,4472.3,4472.0,0.81091]
[1759513905269,3.2078,4472.8,4472.6,1.0303]
[1759513905461,3.2078,4472.8,4472.7,1.0303]
[1759513905662,6.15418071,4473.3,4473.2,1.0303]
[1759513905868,3.2078,4473.3,4473.2,1.0303]
[1759513906769,3.2078,4473.9,4473.6,0.40207]
[1759513906974,3.2078,4473.9,4473.5,0.6387]
[1759513907169,6.1134168,4473.9,4473.6,1.0303]
[1759513907366,3.2078,4473.9,4473.7,1.0303]
[1759513907563,3.2078,4473.9,4473.6,1.0303]
[1759513907873,3.2078,4473.9,4473.8,1.0303]
[1759513907874,0.00246742,4473.9,4473.8,1.0303]
[1759513908065,0.00246742,4473.9,4473.8,1.43236]
[1759513908261,0.00246742,4473.9,4473.8,1.0303]
[1759513908668,0.00246742,4473.9,4473.8,1.2603]
[1759513908968,0.00246742,4473.9,4473.8,1.27490853]
[1759513910374,6.17809939,4473.9,4473.8,0.01460853]
[1759513911274,6.17809939,4473.9,4473.8,1.04490853]
[1759513911464,6.17809939,4473.9,4473.8,1.06179917]
[1759513911873,3.21026742,4473.9,4473.8,1.06179917]
[1759513912373,3.21026742,4473.9,4473.8,1.07559421]
[1759513912873,3.21026742,4473.9,4473.8,1.30559421]
[1759513913273,3.21026742,4473.9,4473.8,1.07559421]
[1759513913476,6.14321219,4473.9,4473.8,0.04529421]
[1759513913668,6.14321219,4473.9,4473.8,1.07559421]
[1759513913870,6.14321219,4473.9,4473.8,0.04529421]
[1759513914770,6.14321219,4473.9,4473.8,1.07559421]
[1759513914972,3.21026742,4473.9,4473.8,1.07559421]
[1759513915769,3.2078,4474.5,4474.4,1.0303]
[1759513915969,3.2078,4475.1,4475.0,0.4087]
[1759513916170,3.2078,4475.1,4475.0,1.669]
[1759513916377,3.2078,4475.7,4475.6,1.0303]
[1759513916877,3.21015753,4475.7,4475.6,1.26194885]
[1759513917484,3.21015753,4475.7,4475.6,1.30724306]
[1759513917683,3.21015753,4475.7,4475.6,6.30724306]
[1759513917972,3.21015753,4475.7,4475.6,1.30724306]
[1759513919171,3.2078,4476.2,4475.6,1.30724306]
[1759513919375,3.2078,4476.7,4476.6,1.0303]
[1759513919576,0.022,4477.9,4476.6,1.0303]
[1759513919577,2.93007227,4477.3,4477.0,0.4087]
[1759513919770,3.2078,4477.4,4477.2,1.0303]
[1759513919968,3.2078,4477.4,4477.2,1.2603]
[1759513920174,2.84610831,4477.3,4476.6,1.0303]
[1759513920478,3.2078,4476.7,4476.0,1.669]
[1759513920678,3.2078,4476.7,4476.0,0.6387]
[1759513920979,0.40174,4477.3,4476.6,1.0303]
[1759513921179,3.21059188,4477.4,4477.0,0.81047]
[1759513921377,2.92200337,4477.2,4477.1,1.0303]
[1759513921579,3.21059188,4477.4,4477.0,0.81047]
[1759513921779,3.21059188,4477.4,4477.1,1.0303]
[1759513921983,2.92200337,4477.3,4477.0,0.4087]
[1759513922179,2.92200337,4477.3,4477.2,1.0787]
[1759513922383,3.21059188,4477.4,4477.3,1.48044]
[1759513922583,1.00384,4479.7,4477.3,1.48044]
[1759513922885,2.77685507,4481.0,4477.0,0.4087]
[1759513922886,3.60915,4481.7,4480.6,1.0787]
[1759513923075,0.40139,4481.3,4480.6,1.3087]
[1759513923275,0.40141,4481.0,4480.6,1.0787]
[1759513923476,0.40143,4480.8,4480.6,0.23]
[1759513923671,0.40399397,4480.8,4480.6,0.00210601]
[1759513923872,0.022,4482.9,4480.7,0.23]
[1759513924176,0.022,4482.9,4480.6,0.00210601]
[1759513924177,0.19212613,4482.9,4482.2,1.0787]
[1759513924376,0.19212613,4482.9,4482.8,1.0787]
[1759513924575,0.19212613,4482.9,4482.8,1.3087]
[1759513924780,0.022,4482.9,4482.8,1.3087]
[1759513924979,0.02490107,4482.9,4482.8,1.3087]
[1759513925179,1.07290107,4482.9,4482.8,0.23]
[1759513925380,1.048,4482.8,4482.4,3.2078]
[1759513925583,1.048,4482.4,4481.4,0.40137]
[1759513925781,1.048,4482.0,4481.1,3.2078]
[1759513925979,1.048,4481.5,4480.8,0.23]
[1759513926175,1.048,4481.5,4480.7,3.2078]
[1759513926380,3.11037084,4481.4,4480.7,4.2865]
[1759513926783,3.11037084,4481.4,4480.7,3.2078]
[1759513927182,0.23,4481.3,4480.7,3.2078]
[1759513927390,1.048,4481.2,4480.8,1.0787]
[1759513927686,6.13346731,4481.1,4480.2,1.0787]
[1759513927982,1.048,4480.7,4479.7,0.40152]
[1759513928188,1.67944,4480.7,4479.6,1.0787]
[1759513928390,0.40146,4480.5,4479.4,0.23]
[1759513928684,2.96238764,4480.4,4479.9,3.2078]
[1759513928989,1.048,4480.4,4479.8,0.40151]
[1759513929183,0.23,4480.3,4479.6,1.0787]
[1759513929385,2.90086391,4480.3,4480.0,0.40149]
[1759513929579,0.23,4480.2,4479.7,0.40152]
[1759513929780,0.23,4480.2,4479.6,0.00195721]
[1759513929781,3.2078,4481.0,4480.2,1.0787]
[1759513929988,1.048,4480.4,4479.8,0.40152]
[1759513930183,3.94886391,4480.4,4479.6,1.08065721]
[1759513930388,3.2078,4481.0,4480.1,1.0787]
[1759513930686,2.95626865,4481.3,4481.2,0.40139]
[1759513930889,2.95626865,4481.3,4481.2,1.48009]
[1759513931085,3.2078,4481.8,4481.7,1.0787]
[1759513931482,3.2078,4481.8,4480.3,1.00368]
[1759513931483,1.048,4481.7,4480.4,3.60926]
[1759513931679,1.048,4481.7,4479.1,1.00396]
[1759513931680,3.2078,4480.7,4479.8,0.23]
[1759513931879,3.2078,4480.2,4479.6,3.20975721]
[1759513932084,0.23,4480.1,4479.7,0.40152]
[1759513932284,3.2078,4480.2,4479.6,3.20975721]
[1759513932490,1.048,4480.4,4480.2,0.40148]
[1759513932788,0.80708,4481.4,4479.6,1.00580721]
[1759513932789,1.44949,4480.2,4479.6,0.00195721]
[1759513932986,0.23,4480.1,4479.6,0.00195721]
[1759513933192,1.048,4479.7,4479.6,0.00195721]
[1759513933387,1.27989957,4479.7,4479.6,0.00195721]
[1759513933694,4.13016445,4479.7,4479.6,0.00195721]
[1759513933984,4.53169445,4479.7,4479.6,0.00195721]
[1759513934186,0.40157,4479.3,4478.6,0.40162]
[1759513934492,1.048,4479.0,4478.8,0.4016]
[1759513934788,1.048,4479.0,4478.4,0.40164]
[1759513935089,1.048,4479.0,4478.5,0.40163]
[1759513935280,3.2078,4479.1,4478.9,1.4803]
[1759513935488,0.63159,4479.0,4478.5,0.00207155]
[1759513935790,2.84995348,4479.0,4478.7,0.40161]
[1759513935988,2.84995348,4479.0,4478.6,1.0787]
[1759513936188,1.048,4478.6,4478.5,0.00207155]
[1759513936491,0.23,4478.9,4478.5,1.08077155]
[1759513936784,0.23,4478.8,4478.6,0.40163]
[1759513936981,0.23,4478.8,4478.5,0.00207155]
[1759513936982,1.44962,4478.7,4478.5,0.00207155]
[1759513937189,1.048,4478.6,4478.5,0.00207155]
[1759513937379,1.44963,4478.6,4478.5,0.00207155]
[1759513937580,12.57495524,4478.6,4478.5,0.00207155]
[1759513937793,1.048,4477.9,4477.2,3.4378]
[1759513938092,0.23,4477.8,4477.2,3.4378]
[1759513938285,1.278,4477.8,4477.4,0.40173]
[1759513938486,0.23,4477.8,4477.2,3.4378]
[1759513938683,2.91913977,4477.7,4477.2,0.00251977]
[1759513938882,1.048,4477.6,4477.2,0.00251977]
[1759513939087,1.048,4477.4,4477.2,0.40426977]
[1759513939292,0.23,4477.3,4477.2,0.40426977]
[1759513939493,7.75522737,4477.3,4477.2,0.00251977]
[1759513939687,7.35348737,4477.3,4477.2,0.00251977]
[1759513940393,6.07548737,4477.3,4477.2,0.00251977]
[1759513940690,6.30448737,4477.3,4477.2,1.08121977]
[1759513940998,1.048,4477.9,4477.7,0.4017]
[1759513941192,0.229,4477.8,4477.4,0.40173]
[1759513941486,0.229,4477.7,4477.5,1.0787]
[1759513941686,0.229,4477.7,4477.3,1.0787]
[1759513942084,1.44974,4477.4,4477.2,0.00251977]
[1759513942286,1.048,4477.3,4477.2,0.00251977]
[1759513942485,3.94918048,4477.3,4477.2,0.00251977]
[1759513943088,4.17818048,4477.3,4477.2,0.00251977]
[1759513943887,0.40176,4477.2,4475.7,1.0787]
[1759513944085,0.40188,4475.9,4475.4,3.2078]
[1759513944289,1.048,4475.8,4475.4,3.2078]
[1759513944490,1.277,4476.0,4475.6,0.40189]
[1759513944792,1.048,4475.8,4475.4,3.2078]
[1759513945094,0.00255179,4475.8,4475.5,1.0787]
[1759513945288,0.40443179,4475.8,4475.5,1.0787]
[1759513945495,0.00255179,4475.8,4475.5,1.0787]
[1759513945691,0.00255179,4475.8,4475.4,0.00183981]
[1759513945692,0.00255179,4475.8,4475.4,0.40374981]
[1759513945891,0.00255179,4475.8,4475.4,0.00183981]
[1759513946294,0.00255179,4475.8,4475.4,1.08053981]
[1759513946491,0.4019,4475.6,4475.4,0.00183981]
[1759513946692,1.048,4475.6,4475.4,0.00183981]
[1759513946888,3.90677153,4475.5,4474.3,3.2078]
[1759513947092,1.0621,4475.0,4474.3,3.2078]
[1759513947293,0.40197,4474.8,4474.3,3.2078]
[1759513947488,2.92176328,4474.9,4474.3,3.2078]
[1759513947687,0.229,4474.8,4474.5,0.4218]
[1759513947892,0.229,4474.8,4474.5,0.42444349]
[1759513948295,0.229,4474.8,4474.6,1.0943]
[1759513948493,2.86076448,4474.7,4474.6,1.0943]
[1759513948694,0.229,4474.9,4474.5,0.42444349]
[1759513948899,0.40197,4474.8,4474.5,0.00264349]
[1759513949194,1.0621,4474.6,4474.5,0.00264349]
[1759513949393,4.4989,4474.6,4474.5,0.00264349]
[1759513949695,7.40201857,4474.6,4474.5,0.00264349]
[1759513950293,0.40207,4473.7,4472.8,3.2078]
[1759513950501,0.229,4473.7,4473.0,1.0943]
[1759513950799,0.40211,4473.2,4472.8,3.2078]
[1759513951097,1.0621,4473.2,4472.8,3.2078]
[1759513951293,1.0621,4473.2,4472.9,1.0943]
[1759513951294,1.2911,4473.2,4472.9,1.0943]
[1759513951495,1.2911,4473.2,4472.8,0.00194459]
[1759513951496,1.0621,4473.1,4472.8,0.00194459]
[1759513951693,3.2078,4473.4,4472.8,0.00194459]
[1759513951905,4.2699,4472.9,4471.2,1.0943]
[1759513952099,3.2078,4472.2,4471.2,1.0943]
[1759513952299,3.2078,4471.4,4471.1,0.229]
[1759513952600,3.2078,4471.4,4471.2,1.1027]
[1759513952801,3.2078,4471.4,4471.1,0.229]
[1759513953005,0.00224826,4471.4,4471.1,0.23122953]
[1759513953199,0.00224826,4471.4,4471.3,1.1027]
[1759513954305,0.00224826,4471.4,4471.3,6.1027]
[1759513954605,0.00224826,4471.4,4471.3,6.1145178]
[1759513954802,0.00224826,4471.4,4471.3,1.1145178]
[1759513954996,1.03504826,4471.4,4471.3,0.0118178]
[1759513955199,3.96761741,4471.4,4471.3,0.0118178]
[1759513955405,7.17541741,4471.4,4471.3,0.0118178]
[1759513956003,7.17541741,4471.4,4471.3,0.0177267]
[1759513956507,3.21004826,4471.4,4471.3,1.1204267]
[1759513956906,3.21004826,4471.4,4471.3,1.1027]
[1759513957208,3.21004826,4471.4,4471.3,0.0236356]
[1759513957409,3.21004826,4471.4,4471.3,1.1263356]
[1759513957912,3.21004826,4471.4,4471.3,1.1027]
[1759513958114,3.21004826,4471.4,4471.3,1.13339816]
[1759513958408,0.00224826,4471.4,4471.3,1.13339816]
[1759513959512,1.4489,4472.5,4471.3,1.13339816]
[1759513959513,3.2078,4473.0,4472.3,1.1027]
[1759513959905,3.2078,4473.0,4472.3,1.50489]
[1759513960212,3.2078,4473.0,4472.6,0.03069816]
[1759513960514,3.20986206,4473.0,4472.7,1.1027]
[1759513960712,3.20986206,4473.0,4472.9,1.50484]
[1759513961012,3.20986206,4473.0,4472.9,1.13339816]
[1759513961309,0.00206206,4473.0,4472.9,1.13339816]
[1759513961510,0.00206206,4473.0,4472.9,6.13339816]
[1759513961715,1.03486206,4473.0,4472.9,0.03069816]
[1759513962108,4.24266206,4473.0,4472.9,0.03069816]
[1759513962811,7.14820853,4473.0,4472.9,0.03069816]
[1759513963017,2.90760853,4473.0,4472.9,0.03069816]
[1759513963213,0.00206206,4473.0,4472.9,1.13339816]
[1759513963513,0.00206206,4473.0,4472.9,0.03069816]
[1759513963912,0.00206206,4473.0,4472.9,0.04235101]
[1759513964510,0.00206206,4473.0,4472.9,1.14505101]
[1759513964713,1.03486206,4473.0,4472.9,0.04235101]
[1759513964913,0.00206206,4473.0,4472.9,0.04896124]
[1759513965109,0.00206206,4473.0,4472.9,1.15166124]
[1759513965308,0.00206206,4473.0,4472.9,0.04896124]
[1759513965514,0.00206206,4473.0,4471.3,4.21349]
[1759513965515,12.7650392,4473.0,4471.8,1.1027]
[1759513965709,0.40224,4471.8,4471.5,0.23]
[1759513965915,1.0328,4472.2,4471.6,1.1027]
[1759513966111,0.40224,4471.8,4471.6,1.1027]
[1759513966318,0.40223,4471.9,4471.3,3.2078]
[1759513966523,1.0328,4472.0,4471.3,3.2078]
[1759513966705,1.0328,4471.7,4471.4,1.1027]
[1759513966912,4.2406,4471.6,4471.5,0.01242849]
[1759513967112,7.15563494,4471.6,4471.5,0.01242849]
[1759513967312,1.4489,4471.0,4469.5,0.4167]
[1759513967507,3.2078,4469.9,4469.6,1.1027]
[1759513967913,3.2078,4469.9,4469.8,1.1027]
[1759513968118,3.2078,4470.4,4470.3,1.1027]
[1759513968313,1.0328,4470.8,4470.3,0.404493]
[1759513968511,3.2078,4470.4,4470.3,0.002123]
[1759513968714,4.2406,4470.4,4470.3,0.002123]
[1759513968911,3.2078,4470.4,4470.3,0.002123]
[1759513969114,4.2406,4470.4,4470.3,0.002123]
[1759513969713,7.18875984,4470.4,4470.3,0.002123]
[1759513969912,7.18875984,4470.4,4468.4,0.79240754]
[1759513969913,0.4161,4468.5,4468.4,0.79240754]
[1759513970215,7.83485984,4468.5,4467.5,1.1027]
[1759513970714,6.80205984,4468.5,4467.0,3.2078]
[1759513970909,6.80205984,4468.5,4466.8,1.1027]
[1759513970910,0.40261,4467.7,4466.8,1.1027]
[1759513971110,3.6239,4468.0,4466.8,1.1027]
[1759513971111,3.61044,4467.4,4466.8,0.00181216]
[1759513971312,1.0328,4467.4,4466.8,0.00181216]
[1759513971722,3.2078,4468.2,4467.4,0.40263]
[1759513972022,3.2078,4468.2,4467.3,1.1027]
[1759513972319,0.00276631,4468.5,4468.3,0.40255]
[1759513972516,0.00276631,4468.5,4468.4,4.3105]
[1759513972710,1.0328,4470.0,4468.4,9.3105]
[1759513972911,3.2078,4470.2,4469.6,1.1027]
[1759513973114,2.96527473,4469.9,4469.6,1.1027]
[1759513973318,3.2078,4470.2,4469.9,0.40241]
[1759513973523,1.0328,4470.6,4470.0,0.40239]
[1759513973722,3.2078,4471.0,4470.3,1.1262246]
[1759513973920,3.2078,4471.0,4470.5,0.40235]
[1759513973921,0.00230241,4471.0,4470.5,0.40235]
[1759513974217,0.00230241,4471.0,4470.9,1.1027]
[1759513974419,0.00230241,4471.0,4470.8,0.40232]
[1759513974420,3.2078,4472.3,4471.4,1.1027]
[1759513974617,3.2078,4472.3,4471.4,4.3105]
[1759513974817,1.0328,4472.2,4471.8,0.03072712]
[1759513975118,3.2078,4472.3,4471.9,1.1027]
[1759513975318,3.21059193,4472.3,4471.8,0.03072712]
[1759513975516,3.21059193,4472.3,4471.9,1.1027]
[1759513975711,3.21059193,4472.3,4472.1,0.03072712]
[1759513975912,3.21059193,4472.3,4472.2,1.1027]
[1759513976112,3.21059193,4472.3,4472.1,0.03072712]
[1759513976313,0.00279193,4472.3,4472.2,1.5049]
[1759513976514,0.00279193,4472.3,4472.2,6.5049]
[1759513976822,3.2078,4473.8,4473.0,0.40212]
[1759513977016,3.2078,4473.8,4472.9,3.4378]
[1759513977216,2.88589684,4473.7,4472.9,3.83994]
[1759513977417,3.2078,4473.2,4472.9,0.23]
[1759513977617,0.00272837,4473.2,4472.9,3.4378]
[1759513977924,0.00272837,4473.2,4473.0,0.03072712]
[1759513978221,3.94443558,4473.1,4473.0,0.03072712]
[1759513978517,0.4161,4473.0,4471.8,3.2078]
[1759513978716,3.2078,4472.4,4471.8,3.2078]
[1759513979215,1.0328,4472.2,4471.2,3.6245]
[1759513979420,1.0328,4472.2,4471.3,0.40228]
[1759513979719,0.4161,4470.0,4469.6,1.5837378]
[1759513979916,1.0328,4469.9,4469.3,0.40246]
[1759513980117,1.0328,4469.9,4469.5,0.40244]
[1759513980318,1.0328,4469.9,4469.2,0.159]
[1759513980522,0.4161,4470.6,4468.2,0.23]
[1759513980523,0.4161,4469.4,4468.2,0.23]
[1759513980721,0.40249,4469.0,4468.2,0.2326604]
[1759513981022,0.41864224,4469.4,4468.6,3.61032]
[1759513981023,2.88469635,4469.3,4468.6,3.61032]
[1759513981213,0.00254224,4469.4,4468.6,3.2078]
[1759513981415,0.00254224,4469.4,4469.2,4.56237]
[1759513981616,0.00254224,4469.4,4469.3,1.1821]
[1759513981925,3.2078,4470.8,4469.3,6.1821]
[1759513982121,3.2078,4470.8,4470.1,0.40239]
[1759513982328,3.2078,4470.8,4470.0,0.23]
[1759513982524,1.0514,4470.7,4470.4,0.01387246]
[1759513982821,1.05393901,4470.7,4470.4,0.01387246]
[1759513983017,1.0514,4470.6,4470.4,0.01387246]
[1759513983219,0.40235,4470.6,4470.4,0.01387246]
[1759513983416,1.0514,4470.6,4470.4,0.01387246]
[1759513983619,1.0514,4470.6,4470.5,0.01387246]
[1759513984421,4.00340506,4470.6,4470.5,0.01387246]
[1759513984617,1.0514,4470.6,4470.5,0.01387246]
[1759513984822,0.00253901,4470.7,4470.6,0.40235]
[1759513985018,0.00253901,4470.7,4470.5,0.01387246]
[1759513985019,0.00253901,4470.7,4470.5,0.99107246]
[1759513985220,0.00253901,4470.7,4470.5,0.41622246]
[1759513985426,0.00253901,4470.7,4470.6,6.2072]
[1759513985617,0.00253901,4470.7,4470.6,5.99107246]
[1759513985822,0.00253901,4470.7,4470.6,6.22107246]
[1759513986126,0.00253901,4470.7,4470.6,5.64622246]
[1759513986423,0.6461,4472.3,4470.6,6.22107246]
[1759513986424,3.2078,4471.8,4470.6,6.22107246]
[1759513986617,3.2078,4471.8,4471.2,0.01387246]
[1759513986820,3.91495774,4472.2,4471.3,1.2072]
[1759513987015,1.0514,4472.2,4471.3,1.2072]
[1759513987220,1.0514,4472.2,4471.7,0.03070309]
[1759513987421,5.11014,4471.8,4471.7,0.03278154]
[1759513987720,10.05697,4471.4,4470.1,1.76377]
[1759513987922,1.0514,4468.7,4468.1,1.5837378]
[1759513988117,1.0514,4468.7,4467.5,1.01]
[1759513988118,3.2078,4468.3,4467.5,1.01]
[1759513988318,2.86373459,4468.6,4468.5,1.01]
[1759513988516,1.5001,4469.4,4468.5,1.24]
[1759513988723,1.05420147,4469.4,4468.9,0.4025]
[1759513989027,0.00280147,4469.4,4469.2,0.40246]
[1759513989322,0.00280147,4469.4,4469.3,0.41633308]
[1759513989529,0.00280147,4469.4,4469.3,1.42633308]
[1759513990023,0.00280147,4469.4,4469.3,0.01387308]
[1759513990220,1.05420147,4469.4,4469.3,0.01387308]
[1759513990417,1.45665147,4469.4,4469.3,0.01387308]
[1759513991426,1.05420147,4469.4,4469.3,0.01387308]
[1759513991625,9.0185705,4469.4,4468.5,0.00169944]
[1759513991826,4.2592,4468.6,4468.5,0.00169944]
[1759513992828,3.2078,4468.6,4468.5,0.00169944]
[1759513993029,0.00280147,4469.4,4468.5,6.01169944]
[1759513993339,0.00280147,4469.4,4469.2,0.40247]
[1759513993626,0.00280147,4469.4,4469.3,1.24]
[1759513994332,0.00280147,4469.4,4469.3,0.23]
[1759513994525,0.00280147,4469.4,4468.8,3.2078]
[1759513994526,1.0514,4469.3,4468.8,3.2078]
[1759513994733,1.0514,4468.7,4468.1,3.2078]
[1759513995027,1.0514,4469.3,4468.9,0.40249]
[1759513995229,1.0514,4469.3,4468.7,0.40251]
[1759513995426,1.0514,4469.3,4468.7,0.40252]
[1759513995626,1.0514,4469.3,4468.6,0.63252]
[1759513995826,1.0514,4469.0,4468.6,0.63252]
[1759513996129,3.2078,4468.9,4468.0,1.01]
[1759513996334,0.40251,4468.8,4468.5,0.23169944]
[1759513996628,1.0514,4468.6,4468.5,0.23169944]
[1759513997030,0.4487,4468.1,4466.1,1.01]
[1759513997235,3.2078,4467.0,4466.2,0.23]
[1759513997426,1.0514,4466.9,4466.2,0.23]
[1759513997829,1.0514,4466.9,4466.5,0.40271]
[1759513998134,1.0514,4466.9,4466.7,0.40269]
[1759513998334,1.0514,4466.9,4466.7,0.23]
[1759513998634,1.0514,4466.8,4466.7,0.23]
[1759513999329,1.0514,4466.6,4466.5,0.00161909]
[1759513999731,3.96339434,4466.6,4466.5,0.00161909]
[1759513999927,1.0514,4466.6,4466.5,0.00161909]
[1759514000123,1.0514,4466.6,4466.5,0.01827809]
[1759514000323,3.2078,4467.0,4466.5,0.24827809]
[1759514000523,3.2078,4467.0,4466.5,0.01827809]
[1759514000728,3.2078,4467.0,4466.5,0.24827809]
[1759514000932,1.0514,4466.9,4466.7,0.40269]
[1759514001138,1.0514,4466.9,4466.8,0.016659]
[1759514001628,1.0514,4466.9,4466.8,0.246659]
[1759514001828,1.0514,4466.9,4466.8,0.016659]
[1759514002425,3.93122948,4466.9,4466.8,0.016659]
[1759514002934,1.0514,4466.9,4466.8,0.016659]
[1759514003632,0.4487,4467.4,4466.8,0.016659]
[1759514003633,0.4487,4467.4,4466.8,0.246659]
[1759514003930,1.45407,4467.0,4466.8,0.016659]
[1759514004235,3.2078,4467.1,4466.7,0.23]
[1759514004536,3.61046,4467.1,4466.7,0.23]
[1759514004835,0.4487,4467.0,4466.7,0.23]
[1759514005133,0.85137,4467.0,4466.7,0.23]
[1759514005332,0.4027,4466.7,4466.5,0.00161909]
[1759514005526,3.2078,4466.6,4466.5,0.00161909]
[1759514005732,6.15038417,4466.6,4466.5,0.00161909]
[1759514006126,6.15038417,4466.6,4466.5,0.01850914]
[1759514006326,1.0514,4466.1,4465.9,0.23]
[1759514006531,1.0514,4466.0,4465.9,0.23]
[1759514006835,0.4487,4466.4,4465.9,0.23]
[1759514007025,1.0203,4466.3,4465.9,0.23]
[1759514007226,3.61054,4466.2,4466.1,0.01383745]
[1759514007633,6.47988954,4466.2,4466.1,0.01383745]
[1759514007836,1.42306,4466.0,4465.9,0.00191906]
[1759514008233,3.88964954,4466.0,4465.9,0.00191906]
[1759514008932,0.40291,4464.3,4464.2,5.34e-06]
[1759514009131,0.40291,4464.3,4462.6,1.0252]
[1759514009132,11.09501,4463.6,4460.7,1.59203817]
[1759514009433,1.00741,4463.8,4461.5,0.41762314]
[1759514009434,0.40309,4462.4,4461.5,0.41762314]
[1759514009632,0.40313,4462.0,4461.4,0.41762314]
[1759514009834,3.2078,4461.5,4461.4,0.41996543]
[1759514010034,3.2078,4461.5,4461.4,1.54306543]
[1759514010228,2.86419752,4461.9,4461.4,0.41996543]
[1759514010433,2.86419752,4461.5,4461.4,0.41996543]
[1759514010634,2.90786247,4461.9,4461.4,0.83758857]
[1759514010934,0.00285168,4462.0,4461.7,1.61352659]
[1759514011129,0.00285168,4462.0,4461.9,1.61352659]
[1759514011329,0.00285168,4462.0,4461.6,0.6706]
[1759514011330,2.90786247,4461.8,4461.7,1.1231]
[1759514011536,2.87566394,4462.0,4461.6,0.4406]
[1759514011736,0.00285168,4462.0,4461.7,1.1231]
[1759514012036,3.2078,4464.5,4463.2,0.40301]
[1759514012334,2.87281226,4464.4,4463.5,1.131]
[1759514012532,3.2078,4464.0,4463.5,1.131]
[1759514012732,2.87281226,4464.4,4463.5,4.3388]
[1759514012931,6.8578713,4463.9,4463.3,0.23]
[1759514013128,3.9492,4463.9,4463.3,0.23]
[1759514013333,3.9492,4463.9,4463.4,0.23]
[1759514013537,2.9086713,4463.8,4463.4,0.23]
[1759514013832,0.7414,4463.7,4463.3,0.23]
[1759514014035,0.7414,4463.7,4463.2,0.23]
[1759514014231,2.89657758,4463.6,4463.1,0.40302]
[1759514014430,0.00193095,4464.4,4463.2,0.6717]
[1759514014633,0.00193095,4464.4,4463.8,0.01421613]
[1759514014831,2.95450878,4464.3,4463.9,1.131]
[1759514015038,2.95450878,4464.3,4464.1,1.131]
[1759514015228,6.16230878,4464.3,4464.0,0.23]
[1759514015427,0.7414,4464.2,4463.8,0.01421613]
[1759514015632,1.14432,4464.2,4463.5,0.23]
[1759514015839,3.19358387,4463.6,4462.9,1.131]
[1759514016044,3.19358387,4463.6,4463.0,0.23]
[1759514016232,3.2078,4464.1,4463.1,3.2078]